[Event "*** Titled Tuesday Blitz"]
[Site "Chess.com"]
[Date "2020.10.20"]
[Round "4"]
[White "korbul"]
[Black "Aleksey_Sorokin"]
[Result "0-1"]
[WhiteElo "2534"]
[BlackElo "2846"]
[TimeControl "180+1"]
[EndTime "10:42:06 PDT"]
[Termination "Aleksey_Sorokin won by resignation"]

1. e4 {[%clk 0:03:00.9]} 1... c6 {[%clk 0:02:59.8]} 2. d4 {[%clk 0:03:00.2]}
2... d5 {[%clk 0:03:00.7]} 3. e5 {[%clk 0:03:00.5]} 3... Bf5 {[%clk 0:03:00.3]}
4. Nf3 {[%clk 0:03:00]} 4... e6 {[%clk 0:03:00.3]} 5. Be2 {[%clk 0:03:00.2]}
5... Ne7 {[%clk 0:03:00.5]} 6. Be3 {[%clk 0:02:59.6]} 6... Bg4 {[%clk
0:02:59.1]} 7. Nbd2 {[%clk 0:02:55.2]} 7... c5 {[%clk 0:02:57.2]} 8. h3 {[%clk
0:02:46.2]} 8... Bxf3 {[%clk 0:02:56.3]} 9. Nxf3 {[%clk 0:02:45.1]} 9... Nf5
{[%clk 0:02:56.5]} 10. Bg5 {[%clk 0:02:39.3]} 10... Qb6 {[%clk 0:02:55]} 11.
dxc5 {[%clk 0:02:31.1]} 11... Bxc5 {[%clk 0:02:53.8]} 12. O-O {[%clk 0:02:30.1]}
12... Ng3 {[%clk 0:02:46.7]} 13. a4 {[%clk 0:02:20.6]} 13... Nxf1 {[%clk
0:02:44.7]} 14. Qxf1 {[%clk 0:02:18.5]} 14... Nc6 {[%clk 0:02:40.2]} 15. c3
{[%clk 0:02:17.8]} 15... a5 {[%clk 0:02:39.8]} 16. Bb5 {[%clk 0:02:16.1]} 16...
O-O {[%clk 0:02:39.3]} 17. Bh4 {[%clk 0:02:16.1]} 17... d4 {[%clk 0:02:35.6]}
18. Qd3 {[%clk 0:02:14.5]} 18... h6 {[%clk 0:02:32]} 19. Qe4 {[%clk 0:02:11.3]}
19... dxc3 {[%clk 0:02:19.1]} 20. bxc3 {[%clk 0:02:10.5]} 20... Be7 {[%clk
0:02:13.5]} 21. Bd3 {[%clk 0:02:08.4]} 21... g6 {[%clk 0:02:11.3]} 22. Bg3
{[%clk 0:01:57]} 22... Rad8 {[%clk 0:02:05.9]} 23. Bb5 {[%clk 0:01:44.4]} 23...
Qc5 {[%clk 0:02:04]} 24. Rc1 {[%clk 0:01:34.5]} 24... Bg5 {[%clk 0:01:59.1]} 25.
Rc2 {[%clk 0:01:27.9]} 25... Rd1+ {[%clk 0:01:53.6]} 26. Kh2 {[%clk 0:01:27.4]}
26... Rfd8 {[%clk 0:01:53.2]} 27. h4 {[%clk 0:01:27.2]} 27... Be7 {[%clk
0:01:45]} 28. h5 {[%clk 0:01:23.9]} 28... Qd5 {[%clk 0:01:41.2]} 29. Qg4 {[%clk
0:01:16.9]} 29... g5 {[%clk 0:01:33.2]} 30. Bc4 {[%clk 0:00:43.2]} 30... Qc5
{[%clk 0:01:33.1]} 31. Bxe6 {[%clk 0:00:37.5]} 31... fxe6 {[%clk 0:01:05.6]} 32.
Qxe6+ {[%clk 0:00:36.9]} 32... Kf8 {[%clk 0:01:04.8]} 33. Qxh6+ {[%clk
0:00:36.3]} 33... Ke8 {[%clk 0:01:05]} 34. e6 {[%clk 0:00:33.2]} 34... Qf5
{[%clk 0:01:01.7]} 35. Rb2 {[%clk 0:00:29.9]} 35... Bf8 {[%clk 0:00:47.6]} 36.
Qh8 {[%clk 0:00:28.4]} 36... Qxe6 {[%clk 0:00:29.7]} 37. Nxg5 {[%clk 0:00:28.3]}
37... Qf5 {[%clk 0:00:21.7]} 38. Re2+ {[%clk 0:00:22.1]} 38... Kd7 {[%clk
0:00:16.6]} 39. Ne6 {[%clk 0:00:17.9]} 39... Re8 {[%clk 0:00:11]} 40. Qg8 {[%clk
0:00:18.1]} 40... Be7 {[%clk 0:00:10]} 41. Nc5+ {[%clk 0:00:15.4]} 41... Qxc5
{[%clk 0:00:07.9]} 42. Qg6 {[%clk 0:00:15.4]} 42... Qd5 {[%clk 0:00:07.5]} 43.
Qg4+ {[%clk 0:00:15.1]} 43... Kd8 {[%clk 0:00:07.3]} 44. h6 {[%clk 0:00:15]}
44... Qf7 {[%clk 0:00:04.5]} 45. Qe4 {[%clk 0:00:09.4]} 45... Qh5+ {[%clk
0:00:03.6]} 46. Bh4 {[%clk 0:00:07.6]} 46... Qxh4+ {[%clk 0:00:03.8]} 47. Qxh4
{[%clk 0:00:06.9]} 47... Bxh4 {[%clk 0:00:04.7]} 48. Rxe8+ {[%clk 0:00:06.7]}
48... Kxe8 {[%clk 0:00:04.9]} 49. h7 {[%clk 0:00:07.6]} 49... Bf6 {[%clk
0:00:05.1]} 50. g4 {[%clk 0:00:07.5]} 50... Bh8 {[%clk 0:00:06]} 51. f4 {[%clk
0:00:08.4]} 51... Rc1 {[%clk 0:00:06.4]} 52. g5 {[%clk 0:00:09.3]} 52... Rxc3
{[%clk 0:00:06.7]} 53. f5 {[%clk 0:00:09.1]} 53... Kf7 {[%clk 0:00:07.2]} 54.
g6+ {[%clk 0:00:09.1]} 54... Kg7 {[%clk 0:00:07.5]} 55. Kg2 {[%clk 0:00:10]}
55... Ne7 {[%clk 0:00:07.7]} 0-1

[Event "*** Titled Tuesday Blitz"]
[Site "Chess.com"]
[Date "2020.10.20"]
[Round "4"]
[White "Morshynska"]
[Black "TurboSteen"]
[Result "1/2-1/2"]
[WhiteElo "2245"]
[BlackElo "2038"]
[TimeControl "180+1"]
[EndTime "10:42:06 PDT"]
[Termination "Game drawn - insufficient material"]

1. Nf3 {[%clk 0:03:00.9]} 1... c5 {[%clk 0:02:57.8]} 2. g3 {[%clk 0:03:00.6]}
2... Nc6 {[%clk 0:02:55.9]} 3. Bg2 {[%clk 0:03:01.1]} 3... e5 {[%clk 0:02:55.5]}
4. d3 {[%clk 0:03:00.4]} 4... g6 {[%clk 0:02:54.6]} 5. O-O {[%clk 0:02:59.7]}
5... Bg7 {[%clk 0:02:55]} 6. e4 {[%clk 0:02:59.8]} 6... Nge7 {[%clk 0:02:53.7]}
7. Nc3 {[%clk 0:02:59.4]} 7... d6 {[%clk 0:02:52.7]} 8. Be3 {[%clk 0:02:55.7]}
8... O-O {[%clk 0:02:52.4]} 9. Qd2 {[%clk 0:02:55.2]} 9... f5 {[%clk 0:02:50.3]}
10. Bh6 {[%clk 0:02:53]} 10... f4 {[%clk 0:02:47.4]} 11. Bxg7 {[%clk 0:02:50.8]}
11... Kxg7 {[%clk 0:02:46.3]} 12. Ne2 {[%clk 0:02:37]} 12... Bg4 {[%clk
0:02:32.8]} 13. gxf4 {[%clk 0:02:28.7]} 13... exf4 {[%clk 0:02:30.4]} 14. Nxf4
{[%clk 0:02:07.4]} 14... Qd7 {[%clk 0:02:26.5]} 15. Ne1 {[%clk 0:01:28.7]} 15...
Nd4 {[%clk 0:02:22]} 16. c3 {[%clk 0:01:18.5]} 16... Rxf4 {[%clk 0:02:15]} 17.
cxd4 {[%clk 0:01:17.4]} 17... Raf8 {[%clk 0:02:11.8]} 18. dxc5 {[%clk
0:01:13.2]} 18... dxc5 {[%clk 0:02:09.2]} 19. Qc3+ {[%clk 0:01:07.3]} 19... Qd4
{[%clk 0:02:04.3]} 20. Qxd4+ {[%clk 0:01:04]} 20... cxd4 {[%clk 0:02:02.7]} 21.
f3 {[%clk 0:00:58]} 21... Be6 {[%clk 0:02:00.2]} 22. Rf2 {[%clk 0:00:52.2]}
22... Nc6 {[%clk 0:01:57.8]} 23. Rc2 {[%clk 0:00:41.3]} 23... R8f7 {[%clk
0:01:51.9]} 24. a3 {[%clk 0:00:39.6]} 24... g5 {[%clk 0:01:45]} 25. b4 {[%clk
0:00:34.9]} 25... h5 {[%clk 0:01:40.8]} 26. Rc5 {[%clk 0:00:30.5]} 26... Kg6
{[%clk 0:01:35.8]} 27. Rac1 {[%clk 0:00:26.1]} 27... g4 {[%clk 0:01:32.7]} 28.
fxg4 {[%clk 0:00:27]} 28... hxg4 {[%clk 0:01:30.6]} 29. Nc2 {[%clk 0:00:17.1]}
29... Rf2 {[%clk 0:01:27.1]} 30. b5 {[%clk 0:00:15.7]} 30... Na5 {[%clk
0:01:24.7]} 31. Nxd4 {[%clk 0:00:15.1]} 31... Rd2 {[%clk 0:01:21.9]} 32. Nxe6
{[%clk 0:00:13.9]} 32... Rff2 {[%clk 0:01:19.5]} 33. Bf1 {[%clk 0:00:12.7]}
33... Nb3 {[%clk 0:01:17.2]} 34. Nd8 {[%clk 0:00:07.8]} 34... Nxc1 {[%clk
0:01:14.4]} 35. Rxc1 {[%clk 0:00:08.7]} 35... Rxh2 {[%clk 0:01:12.1]} 36. Nxb7
{[%clk 0:00:07.9]} 36... g3 {[%clk 0:01:11.3]} 37. Nd6 {[%clk 0:00:07]} 37... g2
{[%clk 0:01:10.5]} 38. Be2 {[%clk 0:00:04.4]} 38... Rh1+ {[%clk 0:01:06]} 39.
Kxg2 {[%clk 0:00:04.1]} 39... Rxc1 {[%clk 0:01:05.6]} 40. Kf3 {[%clk 0:00:03.6]}
40... Rc3 {[%clk 0:01:02.8]} 41. Ke3 {[%clk 0:00:03.4]} 41... Rb2 {[%clk
0:01:00.5]} 42. a4 {[%clk 0:00:01.2]} 42... Ra2 {[%clk 0:00:57]} 43. Bg4 {[%clk
0:00:01.2]} 43... Rxa4 {[%clk 0:00:55.7]} 44. Be6 {[%clk 0:00:01]} 44... Raa3
{[%clk 0:00:54.6]} 45. Bc4 {[%clk 0:00:01.4]} 45... Kf6 {[%clk 0:00:51.1]} 46.
Kd4 {[%clk 0:00:01.7]} 46... Ke7 {[%clk 0:00:48.4]} 47. e5 {[%clk 0:00:02.6]}
47... Rc1 {[%clk 0:00:40.2]} 48. Ne4 {[%clk 0:00:03.1]} 48... Rb1 {[%clk
0:00:37.8]} 49. e6 {[%clk 0:00:03.1]} 49... Rb4 {[%clk 0:00:31.2]} 50. Nc3
{[%clk 0:00:02.8]} 50... a6 {[%clk 0:00:26.8]} 51. Nd5+ {[%clk 0:00:02.3]} 51...
Kd6 {[%clk 0:00:23.7]} 52. Nxb4 {[%clk 0:00:03.2]} 52... axb5 {[%clk 0:00:21.9]}
53. Bxb5 {[%clk 0:00:04.1]} 53... Kxe6 {[%clk 0:00:20.9]} 54. Kc4 {[%clk
0:00:04.7]} 54... Kd6 {[%clk 0:00:20.2]} 55. d4 {[%clk 0:00:05]} 55... Ra1
{[%clk 0:00:18.6]} 56. d5 {[%clk 0:00:05.2]} 56... Rd1 {[%clk 0:00:18.1]} 57.
Nd3 {[%clk 0:00:04.4]} 57... Rxd3 {[%clk 0:00:16.9]} 58. Kxd3 {[%clk 0:00:05.3]}
58... Kxd5 {[%clk 0:00:17]} 1/2-1/2

[Event "*** Titled Tuesday Blitz"]
[Site "Chess.com"]
[Date "2020.10.20"]
[Round "4"]
[White "Ladislav1969"]
[Black "gumimis"]
[Result "1-0"]
[WhiteElo "2428"]
[BlackElo "2286"]
[TimeControl "180+1"]
[EndTime "10:42:07 PDT"]
[Termination "Ladislav1969 won on time"]

1. e4 {[%clk 0:03:00.9]} 1... c5 {[%clk 0:02:57.4]} 2. d4 {[%clk 0:03:00]} 2...
cxd4 {[%clk 0:02:57.5]} 3. c3 {[%clk 0:03:00.9]} 3... dxc3 {[%clk 0:02:58.1]} 4.
Nxc3 {[%clk 0:03:01.7]} 4... e6 {[%clk 0:02:58.5]} 5. Nf3 {[%clk 0:03:02.5]}
5... a6 {[%clk 0:02:58.7]} 6. Bc4 {[%clk 0:03:03.1]} 6... b5 {[%clk 0:02:59.2]}
7. Bb3 {[%clk 0:03:03.3]} 7... Bb7 {[%clk 0:02:57.2]} 8. O-O {[%clk 0:03:03.1]}
8... b4 {[%clk 0:02:51.7]} 9. Na4 {[%clk 0:03:01]} 9... Bxe4 {[%clk 0:02:49.7]}
10. Be3 {[%clk 0:02:59.2]} 10... Bxf3 {[%clk 0:02:37.5]} 11. Qxf3 {[%clk
0:02:58.5]} 11... Nc6 {[%clk 0:02:37.5]} 12. Rac1 {[%clk 0:02:54.6]} 12... Nge7
{[%clk 0:02:02.5]} 13. Nb6 {[%clk 0:01:58.2]} 13... Rb8 {[%clk 0:01:59.7]} 14.
Nc4 {[%clk 0:01:58.3]} 14... d5 {[%clk 0:01:57]} 15. Ba4 {[%clk 0:01:58.4]}
15... dxc4 {[%clk 0:01:37.4]} 16. Bxc6+ {[%clk 0:01:55.5]} 16... Nxc6 {[%clk
0:01:36.3]} 17. Qxc6+ {[%clk 0:01:55.2]} 17... Qd7 {[%clk 0:01:36.1]} 18. Qxc4
{[%clk 0:01:50.5]} 18... Be7 {[%clk 0:01:25.5]} 19. Rfd1 {[%clk 0:01:33.8]}
19... Qb7 {[%clk 0:01:23.7]} 20. Bf4 {[%clk 0:01:28.5]} 20... Ra8 {[%clk
0:01:14.7]} 21. Qc7 {[%clk 0:01:20]} 21... Qxc7 {[%clk 0:01:09.8]} 22. Rxc7
{[%clk 0:01:19.7]} 22... Bf6 {[%clk 0:01:06.7]} 23. Bd6 {[%clk 0:01:14.2]} 23...
Rd8 {[%clk 0:00:59.8]} 24. Rd2 {[%clk 0:01:03.8]} 24... Rd7 {[%clk 0:00:13.4]}
25. Rc6 {[%clk 0:00:56.8]} 25... Be7 {[%clk 0:00:11.3]} 26. Rxa6 {[%clk
0:00:51.1]} 26... Bxd6 {[%clk 0:00:10.3]} 27. Raxd6 {[%clk 0:00:50.2]} 27...
Rxd6 {[%clk 0:00:10]} 28. Rxd6 {[%clk 0:00:50.2]} 28... Ke7 {[%clk 0:00:09.9]}
29. Rb6 {[%clk 0:00:47.1]} 29... Ra8 {[%clk 0:00:10.1]} 30. Rxb4 {[%clk
0:00:42.4]} 30... Rxa2 {[%clk 0:00:09.9]} 31. Kf1 {[%clk 0:00:43.3]} 31... Ra1+
{[%clk 0:00:09.5]} 32. Ke2 {[%clk 0:00:43.5]} 32... Rb1 {[%clk 0:00:09.6]} 33.
g3 {[%clk 0:00:42.3]} 33... h5 {[%clk 0:00:08.6]} 34. h4 {[%clk 0:00:42.2]}
34... g6 {[%clk 0:00:08.7]} 35. Kf3 {[%clk 0:00:41]} 35... Kf6 {[%clk
0:00:08.6]} 36. Kf4 {[%clk 0:00:40.5]} 36... Rf1 {[%clk 0:00:08.4]} 37. f3
{[%clk 0:00:39.9]} 37... Re1 {[%clk 0:00:06.5]} 38. g4 {[%clk 0:00:37.4]} 38...
hxg4 {[%clk 0:00:03.7]} 39. fxg4 {[%clk 0:00:37.1]} 39... Rf1+ {[%clk
0:00:02.7]} 40. Kg3 {[%clk 0:00:37.1]} 40... Rg1+ {[%clk 0:00:03.3]} 41. Kf3
{[%clk 0:00:37.2]} 41... Rb1 {[%clk 0:00:04.2]} 42. Rb7 {[%clk 0:00:31.3]} 42...
Rf1+ {[%clk 0:00:04.5]} 43. Kg2 {[%clk 0:00:30.9]} 43... Rb1 {[%clk 0:00:04.4]}
44. g5+ {[%clk 0:00:30.5]} 44... Kg7 {[%clk 0:00:04]} 45. Kf3 {[%clk 0:00:30.3]}
45... Rh1 {[%clk 0:00:03.5]} 46. Kg3 {[%clk 0:00:29.8]} 46... Rg1+ {[%clk
0:00:03.7]} 47. Kf2 {[%clk 0:00:29.4]} 47... Rh1 {[%clk 0:00:03.9]} 48. Rb4
{[%clk 0:00:27.1]} 48... e5 {[%clk 0:00:02.6]} 49. Kg2 {[%clk 0:00:24.9]} 49...
Rb1 {[%clk 0:00:02]} 50. Rb7 {[%clk 0:00:24.5]} 50... Kf8 {[%clk 0:00:01.6]} 51.
b4 {[%clk 0:00:23.6]} 51... f5 {[%clk 0:00:01.5]} 52. gxf6 {[%clk 0:00:22.8]}
1-0

[Event "*** Titled Tuesday Blitz"]
[Site "Chess.com"]
[Date "2020.10.20"]
[Round "4"]
[White "indfraeng"]
[Black "maximnovik"]
[Result "0-1"]
[WhiteElo "2338"]
[BlackElo "2512"]
[TimeControl "180+1"]
[EndTime "10:42:10 PDT"]
[Termination "maximnovik won by checkmate"]

1. d4 {[%clk 0:03:00.9]} 1... Nf6 {[%clk 0:02:59.5]} 2. c4 {[%clk 0:03:00]} 2...
g6 {[%clk 0:02:59.8]} 3. g3 {[%clk 0:03:00.4]} 3... Bg7 {[%clk 0:02:59]} 4. Bg2
{[%clk 0:03:00.9]} 4... O-O {[%clk 0:02:58.9]} 5. Nc3 {[%clk 0:03:01.3]} 5... d6
{[%clk 0:02:58.4]} 6. Nf3 {[%clk 0:03:00.7]} 6... Nbd7 {[%clk 0:02:58.6]} 7. O-O
{[%clk 0:03:00.9]} 7... e5 {[%clk 0:02:59.1]} 8. e4 {[%clk 0:03:01.2]} 8... c6
{[%clk 0:02:59.3]} 9. h3 {[%clk 0:02:56.9]} 9... exd4 {[%clk 0:02:57.8]} 10.
Nxd4 {[%clk 0:02:54.7]} 10... Qb6 {[%clk 0:02:58.3]} 11. Nb3 {[%clk 0:02:42.1]}
11... Ne5 {[%clk 0:02:57.1]} 12. Be3 {[%clk 0:02:35.6]} 12... c5 {[%clk
0:02:56.2]} 13. Qe2 {[%clk 0:02:23.5]} 13... Be6 {[%clk 0:02:56.5]} 14. Nd5
{[%clk 0:02:22.8]} 14... Bxd5 {[%clk 0:02:56.9]} 15. cxd5 {[%clk 0:02:12.4]}
15... Rfe8 {[%clk 0:02:57]} 16. Rac1 {[%clk 0:02:10.1]} 16... Qb4 {[%clk
0:02:52.2]} 17. Qc2 {[%clk 0:02:04.4]} 17... b5 {[%clk 0:02:48.3]} 18. Bd2
{[%clk 0:01:35.3]} 18... Qa4 {[%clk 0:02:46.5]} 19. f4 {[%clk 0:01:33.4]} 19...
Nc4 {[%clk 0:02:42.8]} 20. e5 {[%clk 0:01:27.5]} 20... Nd7 {[%clk 0:02:18.1]}
21. e6 {[%clk 0:01:20.7]} 21... Ndb6 {[%clk 0:02:17.2]} 22. exf7+ {[%clk
0:01:17.9]} 22... Kxf7 {[%clk 0:02:16.6]} 23. f5 {[%clk 0:01:18.4]} 23... Qxa2
{[%clk 0:02:03.6]} 24. fxg6+ {[%clk 0:01:15.8]} 24... Kg8 {[%clk 0:02:03]} 25.
gxh7+ {[%clk 0:01:09.2]} 25... Kh8 {[%clk 0:02:02.6]} 26. Bc3 {[%clk 0:01:09.3]}
26... Re5 {[%clk 0:01:37]} 27. Rce1 {[%clk 0:00:52.2]} 27... Na4 {[%clk
0:00:32.4]} 28. Rxe5 {[%clk 0:00:33.3]} 28... Nxe5 {[%clk 0:00:30.5]} 29. Ra1
{[%clk 0:00:29]} 29... Nxc3 {[%clk 0:00:30.7]} 30. Qxc3 {[%clk 0:00:16.4]} 30...
b4 {[%clk 0:00:22.7]} 31. Qc2 {[%clk 0:00:15.4]} 31... Qxb2 {[%clk 0:00:17.3]}
32. Qxb2 {[%clk 0:00:14.5]} 32... Nf3+ {[%clk 0:00:17.7]} 33. Bxf3 {[%clk
0:00:15.3]} 33... Bxb2 {[%clk 0:00:17.8]} 34. Rb1 {[%clk 0:00:14]} 34... Be5
{[%clk 0:00:17.7]} 35. Re1 {[%clk 0:00:13.6]} 35... c4 {[%clk 0:00:15]} 36. Na5
{[%clk 0:00:13.7]} 36... c3 {[%clk 0:00:14.9]} 37. Nc6 {[%clk 0:00:14.4]} 37...
b3 {[%clk 0:00:14]} 38. Nxe5 {[%clk 0:00:14.1]} 38... dxe5 {[%clk 0:00:13.7]}
39. Be4 {[%clk 0:00:12.6]} 39... a5 {[%clk 0:00:11.5]} 40. Rc1 {[%clk
0:00:09.6]} 40... c2 {[%clk 0:00:10.6]} 41. Rf1 {[%clk 0:00:05.3]} 41... a4
{[%clk 0:00:09.3]} 42. d6 {[%clk 0:00:05.5]} 42... Rd8 {[%clk 0:00:07.9]} 43. d7
{[%clk 0:00:04]} 43... a3 {[%clk 0:00:07]} 44. Bd5 {[%clk 0:00:03.2]} 44... b2
{[%clk 0:00:06.7]} 45. Bf7 {[%clk 0:00:01]} 45... c1=Q {[%clk 0:00:05.5]} 46.
Be8 {[%clk 0:00:01.9]} 46... Qxf1+ {[%clk 0:00:04.7]} 47. Kxf1 {[%clk
0:00:02.8]} 47... b1=Q+ {[%clk 0:00:03.5]} 48. Kf2 {[%clk 0:00:03.7]} 48... a2
{[%clk 0:00:03.9]} 49. Kf3 {[%clk 0:00:04.6]} 49... a1=Q {[%clk 0:00:04]} 50.
Kg4 {[%clk 0:00:05.5]} 50... Qe4+ {[%clk 0:00:03.8]} 51. Kh5 {[%clk 0:00:05.6]}
51... Qc1 {[%clk 0:00:04]} 52. g4 {[%clk 0:00:06.5]} 52... Qef4 {[%clk
0:00:03.8]} 53. g5 {[%clk 0:00:07.4]} 53... Qxg5# {[%clk 0:00:02.9]} 0-1

[Event "*** Titled Tuesday Blitz"]
[Site "Chess.com"]
[Date "2020.10.20"]
[Round "4"]
[White "Msb2"]
[Black "sergeikim"]
[Result "1-0"]
[WhiteElo "2919"]
[BlackElo "2535"]
[TimeControl "180+1"]
[EndTime "10:42:11 PDT"]
[Termination "Msb2 won on time"]

1. d4 {[%clk 0:03:00.9]} 1... Nf6 {[%clk 0:02:59.2]} 2. c4 {[%clk 0:03:01.5]}
2... g6 {[%clk 0:02:59.3]} 3. Nc3 {[%clk 0:03:02]} 3... Bg7 {[%clk 0:02:59.4]}
4. e4 {[%clk 0:03:02.1]} 4... d6 {[%clk 0:02:59.5]} 5. Be2 {[%clk 0:03:02.8]}
5... O-O {[%clk 0:02:59.2]} 6. Be3 {[%clk 0:03:03.4]} 6... e5 {[%clk 0:02:58.4]}
7. d5 {[%clk 0:03:02.5]} 7... a5 {[%clk 0:02:58.2]} 8. g4 {[%clk 0:03:02.9]}
8... Na6 {[%clk 0:02:57.8]} 9. h4 {[%clk 0:03:03.6]} 9... Nc5 {[%clk 0:02:57.3]}
10. f3 {[%clk 0:03:04.2]} 10... Bd7 {[%clk 0:02:56.9]} 11. h5 {[%clk 0:03:04]}
11... Rc8 {[%clk 0:02:54.7]} 12. Qd2 {[%clk 0:03:03.9]} 12... Qe7 {[%clk
0:02:50.4]} 13. Nh3 {[%clk 0:02:59.9]} 13... c6 {[%clk 0:02:48.1]} 14. hxg6
{[%clk 0:02:36.4]} 14... fxg6 {[%clk 0:02:46.9]} 15. dxc6 {[%clk 0:02:26.6]}
15... Bxc6 {[%clk 0:02:39.2]} 16. O-O-O {[%clk 0:02:25.8]} 16... Rcd8 {[%clk
0:02:20.5]} 17. Nf2 {[%clk 0:02:17.9]} 17... Ne6 {[%clk 0:02:15.9]} 18. Kb1
{[%clk 0:01:50.6]} 18... Nd4 {[%clk 0:02:13.7]} 19. Rh3 {[%clk 0:01:47.8]} 19...
Rf7 {[%clk 0:02:07.7]} 20. Bf1 {[%clk 0:01:39.8]} 20... Rdf8 {[%clk 0:01:52.3]}
21. Bg2 {[%clk 0:01:35]} 21... Nd7 {[%clk 0:01:47.9]} 22. Bxd4 {[%clk
0:01:21.3]} 22... exd4 {[%clk 0:01:46.9]} 23. Ne2 {[%clk 0:01:22.2]} 23... Nc5
{[%clk 0:01:29.5]} 24. Nxd4 {[%clk 0:01:20.1]} 24... Bd7 {[%clk 0:01:29.1]} 25.
Ne2 {[%clk 0:01:07.5]} 25... Qe5 {[%clk 0:01:16.4]} 26. Nc3 {[%clk 0:01:05.3]}
26... Be6 {[%clk 0:01:09.9]} 27. Qxd6 {[%clk 0:01:00]} 27... Bxc4 {[%clk
0:00:59]} 28. Qxe5 {[%clk 0:00:59.8]} 28... Bxe5 {[%clk 0:00:58.2]} 29. g5
{[%clk 0:01:00.7]} 29... Bf4 {[%clk 0:00:50.4]} 30. Ng4 {[%clk 0:00:58.5]} 30...
Bxg5 {[%clk 0:00:48.9]} 31. Ne5 {[%clk 0:00:58.9]} 31... Be6 {[%clk 0:00:46.2]}
32. Nxf7 {[%clk 0:00:31.6]} 32... Bxh3 {[%clk 0:00:40.2]} 33. Bxh3 {[%clk
0:00:11.9]} 33... Rxf7 {[%clk 0:00:31.5]} 34. Rd5 {[%clk 0:00:12.8]} 34... Be7
{[%clk 0:00:30.6]} 35. Bg2 {[%clk 0:00:09.7]} 35... h5 {[%clk 0:00:24.9]} 36.
Ne2 {[%clk 0:00:10]} 36... Kg7 {[%clk 0:00:23.2]} 37. f4 {[%clk 0:00:09.9]}
37... Bf8 {[%clk 0:00:19.5]} 38. Kc2 {[%clk 0:00:08]} 38... Ne6 {[%clk
0:00:15.3]} 39. f5 {[%clk 0:00:08]} 39... Nc5 {[%clk 0:00:11.5]} 40. Nf4 {[%clk
0:00:07.2]} 40... gxf5 {[%clk 0:00:07.6]} 41. exf5 {[%clk 0:00:07.4]} 41... Kh6
{[%clk 0:00:05.5]} 42. Bh3 {[%clk 0:00:06.9]} 42... Kg5 {[%clk 0:00:05.3]} 43.
Ne6+ {[%clk 0:00:05.4]} 43... Kh4 {[%clk 0:00:04.7]} 44. Nxc5 {[%clk 0:00:03.6]}
44... Bxc5 {[%clk 0:00:03.4]} 45. Bf1 {[%clk 0:00:04.5]} 45... b6 {[%clk
0:00:02.2]} 46. Be2 {[%clk 0:00:04.8]} 46... Rf6 {[%clk 0:00:02.3]} 47. a3
{[%clk 0:00:04.9]} 47... Kg5 {[%clk 0:00:02.9]} 48. Kb3 {[%clk 0:00:04.4]} 48...
h4 {[%clk 0:00:02.1]} 49. Rd3 {[%clk 0:00:05]} 49... Kf4 {[%clk 0:00:01.2]} 50.
Ka4 {[%clk 0:00:05.9]} 1-0

[Event "*** Titled Tuesday Blitz"]
[Site "Chess.com"]
[Date "2020.10.20"]
[Round "4"]
[White "TrenerChos"]
[Black "Shockerlover"]
[Result "1-0"]
[WhiteElo "2192"]
[BlackElo "1886"]
[TimeControl "180+1"]
[EndTime "10:42:14 PDT"]
[Termination "TrenerChos won on time"]

1. d4 {[%clk 0:03:00.2]} 1... g6 {[%clk 0:03:00.9]} 2. Nf3 {[%clk 0:02:56.9]}
2... Bg7 {[%clk 0:03:00.5]} 3. g3 {[%clk 0:02:57.4]} 3... d6 {[%clk 0:03:00.6]}
4. Bg2 {[%clk 0:02:58.2]} 4... Nf6 {[%clk 0:03:00.6]} 5. O-O {[%clk 0:02:57.7]}
5... O-O {[%clk 0:03:00.8]} 6. c4 {[%clk 0:02:57.2]} 6... c6 {[%clk 0:03:00.7]}
7. Nc3 {[%clk 0:02:57.9]} 7... Nbd7 {[%clk 0:03:00.7]} 8. e3 {[%clk 0:02:58.8]}
8... e5 {[%clk 0:03:00.8]} 9. b3 {[%clk 0:02:59.7]} 9... Qe7 {[%clk 0:02:54.9]}
10. Bb2 {[%clk 0:02:58.3]} 10... e4 {[%clk 0:02:48.3]} 11. Nd2 {[%clk
0:02:54.6]} 11... d5 {[%clk 0:02:48.2]} 12. a4 {[%clk 0:02:53.8]} 12... h5
{[%clk 0:02:38.3]} 13. Ba3 {[%clk 0:02:51.1]} 13... c5 {[%clk 0:02:24.1]} 14.
cxd5 {[%clk 0:02:45.9]} 14... Re8 {[%clk 0:02:20.2]} 15. Ndxe4 {[%clk
0:02:40.9]} 15... Nxe4 {[%clk 0:02:18.7]} 16. Nxe4 {[%clk 0:02:41.7]} 16... Qd8
{[%clk 0:01:44.7]} 17. Nd6 {[%clk 0:02:21.8]} 17... Re7 {[%clk 0:01:37.1]} 18.
dxc5 {[%clk 0:02:13.4]} 18... Ne5 {[%clk 0:01:30.7]} 19. c6 {[%clk 0:02:02]}
19... Bg4 {[%clk 0:01:24]} 20. f3 {[%clk 0:01:53.8]} 20... bxc6 {[%clk
0:01:06.6]} 21. dxc6 {[%clk 0:01:29.1]} 21... Be6 {[%clk 0:01:01.9]} 22. Nb7
{[%clk 0:01:26.5]} 22... Nxc6 {[%clk 0:00:47]} 23. Nxd8 {[%clk 0:01:23.4]} 23...
Rxd8 {[%clk 0:00:43.1]} 24. Qd4 {[%clk 0:01:22]} 24... Nxd4 {[%clk 0:00:33.3]}
25. Bxe7 {[%clk 0:01:17.4]} 25... Rd7 {[%clk 0:00:32.8]} 26. Rad1 {[%clk
0:01:12.8]} 26... Ne2+ {[%clk 0:00:27]} 27. Kf2 {[%clk 0:01:09.5]} 27... Rxe7
{[%clk 0:00:25.2]} 28. Kxe2 {[%clk 0:01:06]} 28... Bxb3 {[%clk 0:00:25.2]} 29.
Rd8+ {[%clk 0:00:53.9]} 29... Kh7 {[%clk 0:00:24]} 30. Rb1 {[%clk 0:00:52.5]}
30... Bxa4 {[%clk 0:00:22]} 31. e4 {[%clk 0:00:50.4]} 31... Bc3 {[%clk
0:00:19.8]} 32. Kd3 {[%clk 0:00:47.9]} 32... Bf6 {[%clk 0:00:17.6]} 33. Rd6
{[%clk 0:00:44.3]} 33... Kg7 {[%clk 0:00:16.2]} 34. f4 {[%clk 0:00:42.3]} 34...
Rc7 {[%clk 0:00:10.3]} 35. e5 {[%clk 0:00:38.2]} 35... Be7 {[%clk 0:00:09.6]}
36. Rd4 {[%clk 0:00:37.4]} 36... Bd7 {[%clk 0:00:06.1]} 37. Rb7 {[%clk
0:00:33.7]} 37... Bf5+ {[%clk 0:00:05]} 38. Kd2 {[%clk 0:00:26.7]} 38... Rc2+
{[%clk 0:00:03.4]} 39. Kd1 {[%clk 0:00:25.6]} 39... Bc5 {[%clk 0:00:02.8]} 40.
Rd3 {[%clk 0:00:24]} 40... Rxg2 {[%clk 0:00:02.4]} 41. Rc3 {[%clk 0:00:21.6]}
41... Bb6 {[%clk 0:00:01.9]} 42. Re7 {[%clk 0:00:20.2]} 42... Rg1+ {[%clk
0:00:02.5]} 43. Kd2 {[%clk 0:00:19.2]} 43... Rg2+ {[%clk 0:00:03]} 44. Kc1
{[%clk 0:00:17.4]} 44... Rg1+ {[%clk 0:00:02.9]} 45. Kb2 {[%clk 0:00:17.6]}
45... Rg2+ {[%clk 0:00:02.7]} 46. Ka3 {[%clk 0:00:17.9]} 46... Rxh2 {[%clk
0:00:02.9]} 47. Kb4 {[%clk 0:00:17.8]} 47... Rb2+ {[%clk 0:00:02.1]} 48. Kc4
{[%clk 0:00:18]} 1-0